Workbook

Sheet Документ
A2: Сведения о расходах бюджета Заволжского муниципального района по разделам и подразделам классификации расходов бюджетов в 2025 году
A4: Наименование | B4: Раздел/подраздел | D4: План | F4: Исполнено за 2025 год, руб. | H4: Исполнено к первоначальному плану гр.5/гр.3 | I4: Отклонение фактических значений показателей расходов от уточненных плановых значений | J4: Исполнено к уточненному плану гр.5/гр.4
D5: Утверждено на 2025 год (№ 56 от 11.12.2024 в первоначальной редакции), руб. | E5: Утверждено на 2025 год (№ 56 в редакции от 24.12.2025 № 50), руб. | G5: Первоначальный план к уточненному
A6: 1 | B6: 2 | D6: 3 | E6: 4 | F6: 5 | H6: 6 | J6: 7
A7: ОБЩЕГОСУДАРСТВЕННЫЕ ВОПРОСЫ | B7: 0100 | D7: =D8+D9+D10+D11+D12+D13 -> 84,786,758.48 | E7: =E8+E9+E10+E11+E12+E13 -> 90,119,600.79 | F7: =F8+F9+F10+F11+F12+F13 -> 86,872,322.02 | G7: =E7/D7 -> 106.3% | H7: =F7/D7 -> 102.5% | I7: =F7-E7 -> -3,247,278.77 | J7: =F7/E7 -> 96.4%
A8: Функционирование высшего должностного лица субъекта Российской Федерации и муниципального образования | B8: 0102 | D8: 2,485,663.00 | E8: 1,968,469.10 | F8: 1,963,741.73 | G8: =E8/D8 -> 79.2% | H8: =F8/D8 -> 79.0% | I8: -4,727.37 | J8: =F8/E8 -> 99.8%
A9: Функционирование Правительства Российской Федерации, высших исполнительных органов государственной власти субъектов Российской Федерации, местных администраций | B9: 0104 | D9: 43,456,989.40 | E9: 47,260,452.26 | F9: 46,677,938.11 | G9: =E9/D9 -> 108.8% | H9: =F9/D9 -> 107.4% | I9: -582,514.15 | J9: 98.8%
A10: Судебная система | B10: 0105 | D10: 0.00 | E10: 0.00 | F10: 0.00 | I10: 0.00
A11: Обеспечение деятельности финансовых, налоговых и таможенных органов и органов финансового (финансово-бюджетного) надзора | B11: 0106 | D11: 10,423,968.00 | E11: 9,633,555.00 | F11: 9,226,789.60 | G11: 92.4% | H11: 88.5% | I11: -406,765.40 | J11: 95.8%
A12: Резервные фонды | B12: 0111 | D12: 300,000.00 | E12: 300,000.00 | F12: 0.00 | G12: 100.0% | H12: 0.0% | I12: -300,000.00 | J12: 0.0%
A13: Другие общегосударственные вопросы | B13: 0113 | D13: 28,120,138.08 | E13: 30,957,124.43 | F13: 29,003,852.58 | G13: 110.1% | H13: 103.1% | I13: -1,953,271.85 | J13: 93.7%
A14: НАЦИОНАЛЬНАЯ БЕЗОПАСНОСТЬ И ПРАВООХРАНИТЕЛЬНАЯ ДЕЯТЕЛЬНОСТЬ | B14: 0300 | D14: =D16+D17+D15 -> 319,756.00 | E14: =E16+E17+E15 -> 2,307,663.00 | F14: 2,305,027.20 | G14: 45302683429.0% | H14: 720.9% | I14: -2,635.80 | J14: 99.9%
A15: Гражданская оборона | B15: 0309 | D15: 0.00 | E15: 180,000.00 | F15: 180,000.00 | J15: 100.0%
A16: Защита населения и территории от чрезвычайных ситуаций природного и техногенного характера, пожарная безопасность | B16: 0310 | D16: 208,428.00 | E16: 1,778,943.00 | F16: 1,776,307.20 | G16: 853.5% | H16: 852.2% | I16: -2,635.80 | J16: 99.9%
A17: Защита населения и территории от чрезвычайных ситуаций природного и техногенного характера, пожарная безопасность | B17: 0314 | D17: 111,328.00 | E17: 348,720.00 | F17: 348,720.00 | G17: 313.2% | H17: 313.2% | I17: 0.00 | J17: 100.0%
A18: НАЦИОНАЛЬНАЯ ЭКОНОМИКА | B18: 0400 | D18: =D19+D20+D21 -> 100,900,724.95 | E18: =E19+E20+E21 -> 113,983,876.22 | F18: 109,378,895.65 | G18: 113.0% | H18: 108.4% | I18: -4,604,980.57 | J18: 96.0%
A19: Сельское хозяйство и рыболовство | B19: 0405 | D19: 934,975.20 | E19: 534,975.20 | F19: 472,441.60 | G19: 57.2% | H19: 50.5% | I19: -62,533.60 | J19: 88.3%
A20: Транспорт | B20: 0408 | D20: 350,000.00 | E20: 350,000.00 | F20: 350,000.00 | G20: 100.0% | H20: 100.0% | I20: 0.00 | J20: 100.0%
A21: Дорожное хозяйство (дорожные фонды) | B21: 0409 | D21: 99,615,749.75 | E21: 113,098,901.02 | F21: 108,556,454.05 | G21: 113.5% | H21: 109.0% | I21: -4,542,446.97 | J21: 96.0%
A22: ЖИЛИЩНО-КОММУНАЛЬНОЕ ХОЗЯЙСТВО | B22: 0500 | D22: =D23+D24+D25 -> 79,531,863.73 | E22: =E23+E24+E25 -> 111,810,804.53 | F22: =F23+F24+F25 -> 98,989,911.96 | G22: 140.6% | H22: 124.5% | I22: =F22-E22 -> -12,820,892.57 | J22: 88.5%
A23: Жилищное хозяйство | B23: 0501 | D23: 6,934,638.64 | E23: 10,185,954.63 | F23: 9,008,874.78 | G23: 146.9% | H23: 129.9% | I23: -1,177,079.85 | J23: 88.4%
A24: Коммунальное хозяйство | B24: 0502 | D24: 60,268,280.15 | E24: 67,901,131.21 | F24: 57,570,139.58 | G24: 112.7% | H24: 95.5% | I24: -10,330,991.63 | J24: 84.8%
A25: Благоустройство | B25: 0503 | D25: 12,328,944.94 | E25: 33,723,718.69 | F25: 32,410,897.60 | G25: 273.5% | H25: 262.9% | I25: -1,312,821.09 | J25: 96.1%
A26: ОХРАНА ОКРУЖАЮЩЕЙ СРЕДЫ | B26: 0600 | D26: =D27+D28 -> 5,510,942.23 | E26: =E27+E28 -> 5,431,779.12 | F26: 15,900.00 | G26: 98.6% | H26: 0.3% | I26: -5,415,879.12 | J26: 0.3%
A27: Сбор, удаление отходов и очистка сточных вод | B27: 0602 | D27: 95,063.11 | E27: 15,900.00 | F27: 15,900.00 | G27: 16.7% | H27: =F27/D27 -> 16.7% | I27: 0.00 | J27: 100.0%
A28: Охрана объектов растительного и животного мира и среды их обитания | B28: 0603 | D28: 5,415,879.12 | E28: 5,415,879.12 | F28: 0.00 | G28: 100.0% | H28: 0.0% | I28: -5,415,879.12 | J28: 0.0%
A29: ОБРАЗОВАНИЕ | B29: 0700 | D29: =D30+D31+D32+D33+D34+D35 -> 339,271,678.58 | E29: =E30+E31+E32+E33+E34+E35 -> 372,948,724.09 | F29: 343,544,564.25 | G29: 109.9% | H29: 101.3% | I29: -29,404,159.84 | J29: 92.1%
A30: Дошкольное образование | B30: 0701 | D30: 113,874,832.95 | E30: 124,434,029.74 | F30: 111,912,473.44 | G30: 109.3% | H30: 98.3% | I30: -12,521,556.30 | J30: 89.9%
A31: Общее образование | B31: 0702 | D31: 174,439,654.38 | E31: 194,597,788.66 | F31: 182,243,703.77 | G31: 111.6% | H31: 104.5% | I31: -12,354,084.89 | J31: 93.7%
A32: Дополнительное образование детей | B32: 0703 | D32: 29,546,818.80 | E32: 30,847,420.39 | F32: 28,123,805.24 | G32: 104.4% | H32: =F32/D32 -> 95.2% | I32: -2,723,615.15 | J32: =F32/E32 -> 91.2%
A33: Профессиональная подготовка, переподготовка и повышение квалификации | B33: 0705 | D33: 87,000.00 | E33: 67,438.00 | F33: 56,238.00 | G33: 77.5% | H33: 64.6% | I33: -11,200.00 | J33: 83.4%
A34: Молодежная политика | B34: 0707 | D34: 150,000.00 | E34: 150,000.00 | F34: 119,619.46 | G34: 100.0% | H34: 79.7% | I34: -30,380.54 | J34: 79.7%
A35: Другие вопросы в области образования | B35: 0709 | D35: 21,173,372.45 | E35: 22,852,047.30 | F35: 21,088,724.34 | G35: 107.9% | H35: 99.6% | I35: -1,763,322.96 | J35: 92.3%
A36: КУЛЬТУРА, КИНЕМАТОГРАФИЯ | B36: 0800 | D36: =D37 -> 4,957,707.11 | E36: =E37 -> 6,457,479.41 | F36: 6,457,479.41 | G36: 130.3% | H36: 130.3% | I36: 0.00 | J36: 100.0%
A37: Культура | B37: 0801 | D37: 4,957,707.11 | E37: 6,457,479.41 | F37: 6,457,479.41 | G37: 130.3% | H37: 130.3% | I37: 0.00 | J37: 100.0%
A38: СОЦИАЛЬНАЯ ПОЛИТИКА | B38: 1000 | D38: =D39+D40+D41+D42 -> 10,032,457.97 | E38: =E39+E40+E41+E42 -> 10,808,875.46 | F38: 9,902,983.64 | G38: 107.7% | H38: 98.7% | I38: -905,891.82 | J38: 91.6%
A39: Пенсионное обеспечение | B39: 1001 | D39: 4,303,976.00 | E39: 3,862,161.38 | F39: 3,846,956.46 | G39: 89.7% | H39: 89.4% | I39: -15,204.92 | J39: 99.6%
A40: Социальное обеспечение населения | B40: 1003 | D40: 277,200.00 | E40: 319,200.00 | F40: 241,180.00 | G40: 115.2% | H40: 87.0% | I40: -78,020.00 | J40: 75.6%
A41: Охрана семьи и детства | B41: 1004 | D41: 3,151,281.97 | E41: 4,417,514.08 | F41: 3,604,847.18 | G41: 140.2% | H41: 114.4% | I41: =F41-E41 -> -812,666.90 | J41: 81.6%
A42: Другие вопросы в области социальной политики | B42: 1006 | D42: 2,300,000.00 | E42: 2,210,000.00 | F42: 2,210,000.00 | G42: 96.1% | H42: 96.1% | I42: 0.00 | J42: 100.0%
A43: ФИЗИЧЕСКАЯ КУЛЬТУРА И СПОРТ | B43: 1100 | D43: =D44+D45 -> 20,459,773.98 | E43: =E44+E45 -> 18,785,771.44 | F43: 13,521,637.70 | G43: 91.8% | H43: 66.1% | I43: -5,264,133.74 | J43: 72.0%
A44: Физическая культура | B44: 1101 | D44: 885,313.26 | E44: 1,081,066.63 | F44: 933,059.64 | G44: 122.1% | H44: 105.4% | I44: -148,006.99 | J44: 86.3%
A45: Спорт высших достижений | B45: 1103 | D45: 19,574,460.72 | E45: 17,704,704.81 | F45: 12,588,578.06 | G45: 90.4% | H45: 64.3% | I45: -5,116,126.75 | J45: 71.1%
A46: ОБСЛУЖИВАНИЕ ГОСУДАРСТВЕННОГО И МУНИЦИПАЛЬНОГО ДОЛГА | B46: 1300 | D46: =D47 -> 50,000.00 | E46: =E47 -> 0.00 | F46: 0.00 | G46: =E46/D46 -> 0.0% | H46: 0.0% | I46: 0.00 | J46: =F46/E46 -> 
A47: Обслуживание государственного внутреннего и муниципального долга | B47: 1301 | D47: 50,000.00 | E47: 0.00 | F47: 0.00 | G47: 0.0% | H47: =F47/D47 -> 0.0% | I47: 0.00 | J47: =F47/E47 -> 
A48: Итого: | D48: =D7+D14+D18+D22+D26+D29+D36+D38+D43+D46 -> 645,821,663.03 | E48: =E7+E14+E18+E22+E26+E29+E36+E38+E43+E46 -> 732,654,574.06 | F48: =F7+F14+F18+F22+F26+F29+F36+F38+F43+F46 -> 670,988,721.83 | G48: 113.4% | H48: 103.9% | I48: -61665852.23 | J48: 91.6%
